bitfinex/quotes_BTCUSD_20251104
["timestamp","ask_amount","ask_price","bid_price","bid_amount"]
[1762234811500,0.01307396,105670.0,105660.0,0.08538336]
[1762234813021,0.01307396,105670.0,105660.0,0.01968336]
[1762234813258,0.55307396,105670.0,105660.0,0.01968336]
[1762234813467,0.34,105660.0,105650.0,0.09199518]
[1762234813902,0.34,105660.0,105650.0,0.15769518]
[1762234814540,0.01307396,105670.0,105650.0,0.17662561]
[1762234814783,0.01307396,105670.0,105660.0,0.0657]
[1762234814993,0.01307396,105670.0,105660.0,0.15765]
[1762234815209,0.01307396,105670.0,105660.0,0.17353852]
[1762234815435,0.01307396,105670.0,105660.0,0.21960852]
[1762234817953,0.00063325,105670.0,105660.0,0.21960852]
[1762234818177,0.00063325,105670.0,105660.0,0.2396085]
[1762234818398,0.03796,105710.0,105670.0,0.00999999]
[1762234818635,0.03796,105710.0,105700.0,0.10774]
[1762234819304,0.01282557,105710.0,105700.0,0.19969]
[1762234819794,0.025,105730.0,105700.0,0.19969]
[1762234820020,0.025,105730.0,105680.0,0.05606999]
[1762234820021,0.2504697,105710.0,105690.0,0.04607]
[1762234820241,0.03845,105710.0,105690.0,0.064479]
[1762234820462,0.03845,105710.0,105690.0,0.156429]
[1762234820681,0.57845,105710.0,105690.0,0.156429]
[1762234821153,0.59118548,105710.0,105690.0,0.156429]
[1762234821813,0.59118548,105710.0,105690.0,0.131429]
[1762234822711,0.01273548,105710.0,105700.0,0.15362]
[1762234822932,0.01273548,105710.0,105690.0,0.018409]
[1762234822933,0.54,105700.0,105690.0,0.018409]
[1762234823156,0.34,105690.0,105670.0,0.07364908]
[1762234823383,0.365,105690.0,105670.0,0.07364908]
[1762234824132,0.0002351,105680.0,105670.0,0.16559908]
[1762234824356,0.5407251,105680.0,105670.0,0.02757908]
[1762234824619,0.5407251,105680.0,105660.0,0.00063328]
[1762234824620,0.34,105670.0,105660.0,0.00063328]
[1762234824845,0.40525,105670.0,105660.0,0.00077886]
[1762234825075,2.43537688,105670.0,105660.0,0.00077886]
[1762234825525,2.44388575,105670.0,105660.0,0.00077886]
[1762234825750,2.44388575,105670.0,105610.0,0.13802]
[1762234825751,0.34,105640.0,105610.0,0.13802]
[1762234825978,0.34,105640.0,105610.0,0.15230948]
[1762234826437,0.03796,105620.0,105610.0,0.06035948]
[1762234826882,0.34,105640.0,105610.0,0.20017748]
[1762234827331,0.341,105640.0,105610.0,0.20017748]
[1762234827578,0.3895,105640.0,105610.0,0.20017748]
[1762234828023,0.34,105620.0,105610.0,0.20117748]
[1762234828250,0.34,105620.0,105610.0,0.20017748]
[1762234828488,0.34,105620.0,105610.0,0.22019523]
[1762234828978,0.3895,105640.0,105610.0,0.14519523]
[1762234829199,0.3807,105640.0,105610.0,0.19412523]
[1762234829419,0.03796,105620.0,105610.0,0.22983775]
[1762234829885,0.34,105580.0,105550.0,0.14815]
[1762234830136,0.34,105580.0,105550.0,0.14829551]
[1762234830348,0.34,105580.0,105550.0,0.16724387]
[1762234830566,0.49154504,105580.0,105550.0,0.14829551]
[1762234830790,0.49154504,105580.0,105550.0,0.16773206]
[1762234831750,0.35575,105560.0,105550.0,0.06851206]
[1762234831970,0.35575,105560.0,105550.0,0.14829551]
[1762234831971,0.34,105560.0,105550.0,0.14829551]
[1762234832198,0.34,105560.0,105550.0,0.21433498]
[1762234832647,0.35486472,105580.0,105550.0,0.21433498]
[1762234832878,0.35486472,105580.0,105550.0,0.21174551]
[1762234833274,0.39565472,105580.0,105550.0,0.21274551]
[1762234833519,0.39565472,105580.0,105550.0,0.23762706]
[1762234833740,0.35486472,105580.0,105560.0,0.01894657]
[1762234834000,0.01486472,105580.0,105560.0,0.11816657]
[1762234834260,0.04120991,105590.0,105560.0,0.11816657]
[1762234834478,0.04079,105580.0,105550.0,0.07495706]
[1762234834696,0.04079,105580.0,105550.0,0.17417706]
[1762234835137,0.77353149,105590.0,105550.0,0.17417706]
[1762234835361,0.77353149,105590.0,105550.0,0.19312542]
[1762234835582,0.78300208,105590.0,105550.0,0.17417706]
[1762234835820,0.06446872,105580.0,105550.0,0.17417706]
[1762234837162,0.06746872,105580.0,105550.0,0.19312542]
[1762234837368,0.08233294,105580.0,105550.0,0.19312542]
[1762234837792,0.05865422,105580.0,105550.0,0.19312542]
[1762234838208,0.05865422,105580.0,105570.0,0.00211826]
[1762234838644,0.07465422,105580.0,105570.0,0.00211826]
[1762234838919,0.03386422,105580.0,105570.0,0.00211826]
[1762234839135,0.07140422,105580.0,105570.0,0.00211826]
[1762234839526,0.07240422,105580.0,105570.0,0.00211826]
[1762234839775,0.09508294,105580.0,105570.0,0.00211826]
[1762234840214,0.09608294,105580.0,105570.0,0.00211826]
[1762234840441,0.09608294,105580.0,105550.0,0.00014551]
[1762234840442,2.54,105560.0,105550.0,0.00014551]
[1762234840668,0.54041,105560.0,105550.0,0.00014551]
[1762234840907,0.74780052,105560.0,105550.0,0.00014551]
[1762234841351,2.74780052,105560.0,105550.0,0.00014551]
[1762234841585,2.94780052,105560.0,105550.0,0.00014551]
[1762234842029,0.34,105530.0,105510.0,0.04893]
[1762234842253,0.02909,105520.0,105510.0,0.14365079]
[1762234842912,0.02909,105520.0,105510.0,0.09472079]
[1762234842913,0.0295,105520.0,105510.0,0.09472079]
[1762234843129,0.08530796,105520.0,105510.0,0.09472079]
[1762234843341,0.66279131,105520.0,105510.0,0.00014473]
[1762234843554,0.62367116,105520.0,105510.0,0.00014473]
[1762234843759,0.58329116,105520.0,105510.0,0.00014473]
[1762234844003,0.38329116,105520.0,105510.0,0.01938526]
[1762234844184,0.38288116,105520.0,105510.0,0.09472079]
[1762234846014,0.35379116,105520.0,105510.0,0.26824633]
[1762234846237,0.35379116,105520.0,105510.0,0.25029079]
[1762234847644,0.35379116,105520.0,105510.0,0.09572079]
[1762234848738,0.35379116,105520.0,105510.0,0.15665079]
[1762234848944,0.35379116,105520.0,105510.0,0.25029079]
[1762234849598,0.35379116,105520.0,105510.0,0.15665079]
[1762234849805,0.36922419,105520.0,105510.0,0.15665079]
[1762234850022,0.02963419,105520.0,105510.0,0.09572079]
[1762234850243,0.02922419,105520.0,105510.0,0.15665079]
[1762234850465,0.01379116,105520.0,105510.0,0.26924633]
[1762234850684,0.01379116,105520.0,105510.0,0.25029079]
[1762234850860,0.04396852,105530.0,105510.0,0.25029079]
[1762234851092,0.01364039,105520.0,105510.0,0.25029079]
[1762234851309,0.04396852,105530.0,105510.0,0.25170437]
[1762234851530,0.04396852,105530.0,105510.0,0.25029079]
[1762234851761,0.01487852,105530.0,105520.0,0.16928375]
[1762234851986,0.01487852,105530.0,105520.0,0.1957842]
[1762234852659,0.01487852,105530.0,105520.0,0.17683045]
[1762234852866,0.01487852,105530.0,105520.0,0.17783045]
[1762234853143,0.01487852,105530.0,105520.0,0.08419045]
[1762234853375,2.43844265,105530.0,105520.0,0.001]
[1762234854027,2.5900583,105530.0,105520.0,0.001]
[1762234854246,0.54,105520.0,105510.0,0.00014473]
[1762234854465,0.54,105520.0,105510.0,0.01910027]
[1762234854466,0.34,105520.0,105510.0,0.01910027]
[1762234854682,0.3812,105520.0,105510.0,0.09472079]
[1762234854889,0.39663646,105520.0,105510.0,0.09472079]
[1762234855102,0.59663646,105520.0,105510.0,0.00014473]
[1762234855952,0.59763646,105520.0,105510.0,0.00014473]
[1762234856378,0.59663646,105520.0,105510.0,0.00014473]
[1762234856557,0.59663646,105520.0,105510.0,0.00114473]
[1762234857692,0.34,105520.0,105510.0,0.02010027]
[1762234857909,0.34,105520.0,105510.0,0.11467633]
[1762234858090,0.34,105520.0,105510.0,0.25170437]
[1762234858554,0.34,105520.0,105510.0,0.15806437]
[1762234858987,0.34,105520.0,105510.0,0.17701991]
[1762234859203,0.34,105520.0,105510.0,0.27065991]
[1762234859443,0.34,105520.0,105510.0,0.09613437]
[1762234859653,0.34,105520.0,105510.0,0.09813437]
[1762234859861,0.34041,105520.0,105510.0,0.09813437]
[1762234860533,0.54041,105520.0,105510.0,0.09813437]
[1762234860794,0.58079,105520.0,105510.0,0.00355831]
[1762234861227,0.59622757,105520.0,105510.0,0.00355831]
[1762234861431,0.74785759,105520.0,105510.0,0.00355831]
[1762234862075,0.49164439,105510.0,105500.0,8.94481014]
[1762234862300,0.55877439,105510.0,105500.0,9.03943472]
[1762234862523,0.57421196,105510.0,105500.0,8.94509434]
[1762234862742,2.57421196,105510.0,105500.0,8.94509434]
[1762234862961,2.43744987,105510.0,105500.0,8.94509434]
[1762234863846,0.3812223,105510.0,105500.0,8.94509434]
[1762234864066,0.3548823,105510.0,105500.0,9.08666434]
[1762234864280,0.02697433,105520.0,105500.0,9.1812404]
[1762234864513,0.36697433,105520.0,105500.0,9.1812404]
[1762234864955,0.01547953,105510.0,105500.0,8.93209434]
[1762234865182,0.07955396,105510.0,105500.0,8.93209434]
[1762234865856,0.23119835,105510.0,105500.0,8.93209434]
[1762234866108,0.20750392,105510.0,105500.0,8.93209434]
[1762234866318,2.54750392,105510.0,105500.0,8.93509434]
[1762234866565,2.39585953,105510.0,105500.0,8.93209434]
[1762234866772,2.39585953,105510.0,105500.0,9.0266704]
[1762234867011,2.39585953,105510.0,105500.0,8.93209434]
[1762234867228,2.4107422,105510.0,105500.0,8.93209434]
[1762234868106,2.56238659,105510.0,105500.0,8.93209434]
[1762234869309,2.57238658,105510.0,105500.0,8.93209434]
[1762234869511,2.56238659,105510.0,105500.0,8.80378806]
[1762234869737,2.57238658,105510.0,105500.0,8.80378806]
[1762234869991,2.58238657,105510.0,105500.0,8.80337806]
[1762234870205,2.68780449,105510.0,105500.0,8.80337806]
[1762234870437,2.6778045,105510.0,105500.0,8.80337806]
[1762234870652,2.8778045,105510.0,105500.0,8.80337806]
[1762234870875,2.76238659,105510.0,105500.0,8.80337806]
[1762234871311,2.88780449,105510.0,105500.0,8.80337806]
[1762234871537,2.90080448,105510.0,105500.0,8.80337806]
[1762234871755,2.78538657,105510.0,105500.0,8.80337806]
[1762234871969,2.77538658,105510.0,105500.0,8.80337806]
[1762234872185,2.90080448,105510.0,105500.0,8.80337806]
[1762234873054,2.90576556,105510.0,105500.0,7.86241458]
[1762234873263,2.90576556,105510.0,105500.0,6.24790114]
[1762234873264,4.18149177,105510.0,105500.0,6.24790114]
[1762234873530,4.2300259,105510.0,105500.0,6.22870797]
[1762234873740,4.2300259,105510.0,105500.0,6.01198492]
[1762234873958,4.2300259,105510.0,105500.0,3.16292926]
[1762234874187,4.2300259,105510.0,105500.0,2.33712926]
[1762234874188,2.80136121,105510.0,105500.0,2.33712926]
[1762234874399,2.80136121,105510.0,105500.0,0.77157894]
[1762234874400,2.78136123,105510.0,105500.0,0.77157894]
[1762234874612,2.79034765,105510.0,105500.0,0.68488972]
[1762234874890,2.79034765,105510.0,105370.0,0.00999999]
[1762234874891,0.08517485,105410.0,105370.0,0.00999999]
[1762234875105,0.08517485,105410.0,105380.0,0.01446995]
[1762234875328,0.08517485,105410.0,105400.0,0.00965]
[1762234875549,0.01330354,105410.0,105400.0,0.00965]
[1762234875764,0.09092,105440.0,105400.0,0.00465]
[1762234875982,0.43092,105440.0,105400.0,0.02362533]
[1762234876237,0.08517485,105450.0,105430.0,0.00465]
[1762234876465,0.09871768,105450.0,105440.0,0.00465]
[1762234876690,0.09871768,105450.0,105400.0,0.04328849]
[1762234876907,0.18963768,105450.0,105410.0,0.02362353]
[1762234877148,0.18963768,105450.0,105410.0,0.00465]
[1762234877380,0.11360616,105450.0,105420.0,0.03139545]
[1762234877602,0.11360616,105450.0,105420.0,0.00465]
[1762234878036,0.20452616,105450.0,105420.0,0.01897173]
[1762234878250,0.11360616,105450.0,105430.0,0.00465]
[1762234878477,0.11360616,105450.0,105420.0,0.01735397]
[1762234878478,0.54452616,105450.0,105420.0,0.01735397]
[1762234878691,0.54452616,105450.0,105410.0,0.00513224]
[1762234878911,0.54452616,105450.0,105410.0,0.02410577]
[1762234879123,0.09092,105440.0,105420.0,0.002]
[1762234879350,0.63092,105440.0,105420.0,0.002]
[1762234879565,0.44162383,105430.0,105420.0,0.002]
[1762234879795,0.49376,105430.0,105420.0,0.002]
[1762234880020,0.50883142,105430.0,105410.0,0.00048224]
[1762234880233,0.49376,105430.0,105410.0,0.00048224]
[1762234880459,0.15376,105420.0,105410.0,0.00048224]
[1762234881135,0.06284,105420.0,105410.0,0.00048224]
[1762234881358,0.34,105430.0,105410.0,0.00978224]
[1762234881585,0.18963768,105450.0,105410.0,0.00978224]
[1762234881815,0.18963768,105450.0,105420.0,0.00665]
[1762234881816,0.01354283,105450.0,105420.0,0.00665]
[1762234882045,0.17609485,105490.0,105440.0,0.01464999]
[1762234882267,2.0,105480.0,105450.0,0.02361633]
[1762234882484,0.09092,105480.0,105450.0,0.02361633]
[1762234882712,0.08517485,105490.0,105450.0,0.02826633]
[1762234882929,0.00063439,105510.0,105480.0,0.00465]
[1762234882930,0.02425072,105510.0,105480.0,0.00465]
[1762234883154,0.02425072,105510.0,105490.0,0.00465]
[1762234883155,0.08517485,105500.0,105490.0,0.00465]
[1762234883375,0.28568485,105500.0,105460.0,0.00465]
[1762234883592,0.28568485,105500.0,105490.0,0.00048224]
[1762234883857,0.29908587,105500.0,105490.0,0.00048224]
[1762234884511,0.63908587,105500.0,105490.0,0.00048224]
[1762234885624,0.08517485,105500.0,105490.0,0.00248224]
[1762234885854,0.06284,105490.0,105390.0,0.00999999]
[1762234886076,0.38675,105450.0,105410.0,0.00961]
[1762234886295,0.13767,105450.0,105410.0,0.00961]
[1762234886509,0.13767,105450.0,105410.0,0.01922]
[1762234887115,0.08517485,105430.0,105410.0,0.01922]
[1762234887797,0.08517485,105430.0,105410.0,0.00961]
[1762234888237,0.34,105420.0,105410.0,0.00961]
[1762234888446,0.34,105420.0,105410.0,0.002]
[1762234888886,0.34,105420.0,105400.0,0.01014]
[1762234889094,0.34,105420.0,105410.0,0.004]
[1762234889302,0.34,105420.0,105400.0,0.01014]
[1762234889516,0.50103,105420.0,105400.0,0.01014]
[1762234889721,0.50103,105420.0,105410.0,0.005]
[1762234889968,0.42517485,105430.0,105410.0,0.005]
[1762234890177,0.42517485,105430.0,105410.0,0.0203842]
[1762234891001,0.52157485,105430.0,105410.0,0.005]
[1762234891236,0.52157485,105430.0,105400.0,0.02552566]
[1762234891487,0.42517485,105430.0,105410.0,0.01538718]
[1762234891705,0.42517485,105430.0,105420.0,0.00188701]
[1762234892127,0.08517485,105430.0,105420.0,0.02216701]
[1762234892551,0.08517485,105430.0,105420.0,0.01202701]
[1762234893183,0.08517485,105430.0,105420.0,0.01602701]
[1762234893615,0.08517485,105430.0,105420.0,0.02616701]
[1762234894490,0.08517485,105430.0,105420.0,0.00616701]
[1762234894712,0.04670425,105450.0,105420.0,0.00616701]
[1762234894713,0.1318791,105450.0,105420.0,0.00616701]
[1762234894925,0.08566173,105450.0,105420.0,0.00616701]
[1762234895762,0.08566173,105450.0,105420.0,0.00716701]
[1762234896616,0.08566173,105450.0,105420.0,0.02254519]
[1762234898124,0.34,105440.0,105420.0,0.01637818]
[1762234898341,0.34,105440.0,105420.0,0.001]
[1762234898547,0.4364,105440.0,105420.0,0.001]
[1762234899243,0.52206173,105450.0,105400.0,0.02552262]
[1762234899457,0.52206173,105450.0,105420.0,0.001]
[1762234899666,0.0964,105440.0,105420.0,0.001]
[1762234900330,0.00063497,105430.0,105420.0,0.001]
[1762234900768,0.00063497,105430.0,105410.0,0.01562013]
[1762234901213,0.00063497,105430.0,105410.0,0.00023599]
[1762234901424,0.00063497,105430.0,105410.0,0.01562019]
[1762234901554,0.00063497,105430.0,105420.0,0.002]
[1762234901765,0.00063497,105430.0,105410.0,0.01562019]
[1762234902164,0.00063497,105430.0,105410.0,0.01762019]
[1762234902732,0.09703497,105430.0,105410.0,0.01562019]
[1762234902947,0.45198998,105430.0,105410.0,0.00023599]
[1762234903124,0.43703497,105430.0,105410.0,0.00023599]
[1762234904072,0.43703497,105430.0,105420.0,0.002]
[1762234904293,0.43703497,105430.0,105410.0,0.00023599]
[1762234904697,0.43703497,105430.0,105410.0,0.00223599]
[1762234905106,0.43703497,105430.0,105410.0,0.00023599]
[1762234905343,0.43703497,105430.0,105420.0,0.002]
[1762234905555,0.00063497,105430.0,105410.0,0.01561867]
[1762234905995,0.00063497,105430.0,105410.0,0.01761867]
[1762234906872,0.00063497,105430.0,105410.0,0.02239453]
[1762234907093,0.00063497,105430.0,105410.0,0.02039453]
[1762234907308,0.00063497,105430.0,105420.0,0.002]
[1762234907758,0.00063497,105430.0,105410.0,0.02039453]
[1762234907968,0.00063497,105430.0,105410.0,0.00701185]
[1762234908185,0.10023497,105430.0,105410.0,0.00701185]
[1762234908398,0.10023497,105430.0,105410.0,0.00023599]
[1762234908607,0.10023497,105430.0,105420.0,0.002]
[1762234908817,0.10023497,105430.0,105410.0,0.00023599]
[1762234909244,0.44023497,105430.0,105410.0,0.00023599]
[1762234909665,0.16361,105420.0,105410.0,0.00023599]
[1762234909873,0.34063497,105430.0,105410.0,0.00023599]
[1762234910084,0.34063497,105430.0,105410.0,0.01562323]
[1762234910294,0.44023497,105430.0,105410.0,0.01562323]
[1762234910746,0.45511869,105430.0,105410.0,0.01562323]
[1762234910951,0.45511869,105430.0,105410.0,0.01762323]
[1762234911160,0.64481803,105430.0,105410.0,0.00223599]
[1762234911373,0.50361,105420.0,105410.0,0.00223599]
[1762234912045,0.40401,105420.0,105410.0,0.00223599]
[1762234912260,0.40401,105420.0,105410.0,0.00023599]
[1762234913160,0.40401,105420.0,105400.0,0.00437599]
[1762234913383,0.08517485,105410.0,105400.0,0.00437599]
[1762234914213,0.08517485,105410.0,105400.0,0.00737599]
[1762234914432,0.13402142,105410.0,105400.0,0.00437599]
[1762234915278,0.13502142,105410.0,105400.0,0.00837599]
[1762234916553,0.13402142,105410.0,105400.0,0.00437599]
[1762234916974,0.13402142,105410.0,105400.0,0.00637599]
[1762234917804,0.14891346,105410.0,105400.0,0.00637599]
[1762234919053,0.14891346,105410.0,105380.0,0.02539459]
[1762234919054,0.10055346,105410.0,105380.0,0.00200661]
[1762234919456,0.10055346,105410.0,105380.0,0.0120066]
[1762234919659,0.10055346,105410.0,105380.0,0.00200661]
[1762234919892,0.34,105400.0,105380.0,0.0120066]
[1762234920314,0.34,105400.0,105390.0,0.00023605]
[1762234920565,0.00112168,105410.0,105390.0,0.01023604]
[1762234920771,0.00112168,105410.0,105400.0,0.00200375]
[1762234921203,0.00112168,105410.0,105400.0,0.00100375]
[1762234921437,0.00112168,105410.0,105370.0,0.10931036]
[1762234921721,0.00112168,105410.0,105380.0,0.38427319]
[1762234921974,0.00112168,105410.0,105400.0,0.002]
[1762234922185,0.00112168,105410.0,105380.0,0.18499485]
[1762234922872,0.00112168,105410.0,105380.0,0.09982]
[1762234924001,0.42629653,105410.0,105380.0,0.09982]
[1762234924214,0.42629653,105410.0,105380.0,0.11894884]
[1762234924428,0.34112168,105410.0,105380.0,0.11894884]
[1762234926542,0.34112168,105410.0,105380.0,0.01912884]
[1762234926753,0.42629653,105410.0,105380.0,0.002]
[1762234930854,0.74589651,105410.0,105380.0,0.002]
[1762234931072,0.19477484,105410.0,105380.0,0.002]
[1762234931283,0.10517483,105410.0,105380.0,0.002]
[1762234931490,0.08517485,105410.0,105380.0,0.002]
[1762234932403,0.08517485,105410.0,105380.0,0.20127646]
[1762234932620,0.01489198,105420.0,105390.0,0.08517485]
[1762234932846,0.01489198,105420.0,105390.0,0.00048657]
[1762234933068,0.04836,105430.0,105390.0,0.00048657]
[1762234933281,0.38836,105430.0,105390.0,0.00048657]
[1762234933720,0.001,105420.0,105390.0,0.00248657]
[1762234934146,0.39835999,105430.0,105390.0,0.00048657]
[1762234934367,0.39835999,105430.0,105390.0,0.00148657]
[1762234934581,0.39835999,105430.0,105390.0,0.00048657]
[1762234935010,0.001,105420.0,105390.0,0.00248657]
[1762234935236,0.001,105420.0,105390.0,0.20174497]
[1762234935447,0.001,105420.0,105390.0,0.25437053]
[1762234935748,0.001,105420.0,105390.0,0.05511213]
[1762234936171,0.16795998,105440.0,105390.0,0.25237101]
[1762234936390,0.00999999,105440.0,105390.0,0.25237077]
[1762234936625,0.08517485,105450.0,105410.0,0.19921847]
[1762234936855,0.01489003,105460.0,105420.0,0.00948586]
[1762234937081,0.00070788,105430.0,105410.0,0.0483633]
[1762234937324,0.06001323,105450.0,105400.0,0.0003991]
[1762234937600,0.05534999,105450.0,105400.0,0.0003991]
[1762234937832,0.36447998,105450.0,105400.0,0.0003991]
[1762234938074,0.08517485,105420.0,105400.0,0.0003991]
[1762234940110,0.52430485,105420.0,105400.0,0.0003991]
[1762234940322,0.42617485,105420.0,105400.0,0.0003991]
[1762234940775,0.44343668,105420.0,105400.0,0.0003991]
[1762234941211,0.54256668,105420.0,105400.0,0.0003991]
[1762234941443,0.44343668,105420.0,105400.0,0.0003991]
[1762234942547,0.04535,105410.0,105400.0,0.0003991]
[1762234942791,0.52577683,105420.0,105400.0,0.0003991]
[1762234943038,0.20303862,105420.0,105400.0,0.0003991]
[1762234943301,0.11390861,105420.0,105400.0,0.0003991]
[1762234943524,0.21303861,105420.0,105400.0,0.0003991]
[1762234943761,0.10679,105410.0,105400.0,0.0003991]
[1762234943996,0.23318178,105410.0,105400.0,0.0003991]
[1762234944225,0.07261178,105410.0,105400.0,0.0003991]
[1762234944671,0.13405178,105410.0,105400.0,0.0003991]
[1762234944884,0.12405179,105410.0,105400.0,0.0003991]
[1762234945105,0.58318177,105410.0,105400.0,0.0003991]
[1762234945555,0.48405177,105410.0,105400.0,0.0003991]
[1762234945802,0.41261178,105410.0,105400.0,0.0003991]
[1762234945994,0.40261179,105410.0,105400.0,0.0003991]
[1762234946209,0.35726179,105410.0,105400.0,0.0003991]
[1762234946411,0.40261179,105410.0,105400.0,0.0013991]
[1762234946830,0.46405179,105410.0,105400.0,0.0013991]
[1762234947076,0.40261179,105410.0,105400.0,0.0013991]
[1762234947766,0.35726179,105410.0,105400.0,0.0013991]
[1762234949313,0.35726179,105410.0,105400.0,0.00056579]
[1762234950454,0.37215422,105410.0,105400.0,0.00056579]
[1762234952010,0.35489243,105410.0,105400.0,0.00056579]
[1762234954379,0.01489243,105410.0,105400.0,0.00056579]
[1762234955210,0.00047198,105420.0,105400.0,0.00056579]
[1762234956068,0.01773297,105420.0,105400.0,0.00056579]
[1762234956282,0.01773297,105420.0,105390.0,0.00048657]
[1762234956283,0.10569,105410.0,105390.0,0.00048657]
[1762234956493,0.38545,105410.0,105390.0,0.00048657]
[1762234956718,0.35725679,105410.0,105390.0,0.00048657]
[1762234957386,0.35725679,105410.0,105390.0,0.00148657]
[1762234957812,0.01725679,105410.0,105390.0,0.00148657]
[1762234958248,0.02725678,105410.0,105390.0,0.00148657]
[1762234958503,0.13115677,105410.0,105390.0,0.00148657]
[1762234959145,0.02725678,105410.0,105390.0,0.00148657]
[1762234959368,0.01725679,105410.0,105390.0,0.00148657]
[1762234959581,0.34047198,105420.0,105390.0,0.00148657]
[1762234959582,0.00999999,105420.0,105390.0,0.00148657]
[1762234959788,0.09517484,105420.0,105390.0,0.00148657]
[1762234960009,0.22678238,105420.0,105390.0,0.00148657]
[1762234960230,0.21526558,105420.0,105390.0,0.00148657]
[1762234960443,0.00893233,105410.0,105390.0,0.00148657]
[1762234960862,0.01725841,105410.0,105390.0,0.00148657]
[1762234961091,0.02619074,105410.0,105390.0,0.00148657]
[1762234961293,0.01725841,105410.0,105390.0,0.00148657]
[1762234961719,0.02619074,105410.0,105390.0,0.00148657]
[1762234962138,0.01725841,105410.0,105390.0,0.00048657]
[1762234962976,0.02619074,105410.0,105390.0,0.00148657]
[1762234963186,0.01725841,105410.0,105390.0,0.00148657]
[1762234965056,0.10410717,105420.0,105390.0,0.00148657]
[1762234965271,0.1113676,105420.0,105390.0,0.00148657]
[1762234965687,0.34,105400.0,105390.0,0.00148657]
[1762234965903,0.34,105400.0,105390.0,0.00048657]
[1762234966791,0.34,105400.0,105390.0,0.00248657]
[1762234967419,0.35727568,105400.0,105390.0,0.00248657]
[1762234968249,0.34,105400.0,105390.0,0.00248657]
[1762234968461,0.35727674,105400.0,105390.0,0.00248657]
[1762234970570,0.34,105400.0,105360.0,0.08522908]
[1762234970734,0.35776419,105400.0,105360.0,0.05317837]
[1762234970925,0.35776419,105400.0,105360.0,0.00106766]
[1762234971125,0.35776419,105400.0,105360.0,0.08624251]
[1762234971351,0.35776419,105400.0,105390.0,0.00023606]
[1762234972385,0.34048627,105400.0,105390.0,0.00023606]
[1762234972603,0.00048627,105400.0,105390.0,0.00023606]
[1762234972812,0.00048627,105400.0,105390.0,0.00223606]
[1762234976918,0.00048627,105400.0,105360.0,0.03618228]
[1762234977117,0.00048627,105400.0,105360.0,0.15489086]
[1762234977314,0.00048627,105400.0,105360.0,0.11870858]
[1762234977519,0.01776548,105400.0,105360.0,0.11870858]
[1762234978364,0.01776548,105400.0,105360.0,0.31802498]
[1762234978571,0.01776548,105400.0,105360.0,0.11870858]
[1762234978779,0.00048627,105400.0,105360.0,0.11870858]
[1762234978997,0.00048627,105400.0,105360.0,0.11970858]
[1762234979414,0.09223627,105400.0,105360.0,0.03453373]
[1762234979625,0.13069485,105390.0,105360.0,0.001]
[1762234979833,0.14796717,105390.0,105360.0,0.001]
[1762234980886,0.23971717,105390.0,105360.0,0.001]
[1762234981352,0.14796717,105390.0,105360.0,0.001]
[1762234981560,0.14796717,105390.0,105340.0,0.27503514]
[1762234981768,0.23971717,105390.0,105340.0,0.14259764]
[1762234981971,0.23971717,105390.0,105340.0,0.08517485]
[1762234982420,0.25289773,105390.0,105340.0,0.28452827]
[1762234982637,0.27589771,105390.0,105360.0,0.001]
[1762234982847,0.27589771,105390.0,105340.0,0.19935414]
[1762234982848,0.34,105380.0,105340.0,0.19935414]
[1762234983053,0.34,105380.0,105350.0,0.27501778]
[1762234983281,0.34,105380.0,105350.0,0.13261204]
[1762234983742,0.34,105380.0,105350.0,0.04743719]
[1762234983945,0.34,105380.0,105330.0,0.03618228]
[1762234984170,0.35725329,105380.0,105330.0,0.03618228]
[1762234984384,0.08517485,105360.0,105310.0,0.0002]
[1762234984544,0.42517485,105360.0,105310.0,0.09426789]
[1762234984747,0.01503338,105350.0,105310.0,0.09426789]
[1762234984957,0.43517484,105360.0,105310.0,0.12616446]
[1762234985163,0.43517484,105360.0,105310.0,0.04098961]
[1762234985164,0.13727,105350.0,105310.0,0.04098961]
[1762234985366,0.00999999,105330.0,105310.0,0.00909304]
[1762234985571,0.00999999,105330.0,105310.0,0.0002]
[1762234985572,0.46193999,105320.0,105310.0,0.0002]
[1762234985776,0.38225484,105320.0,105310.0,0.0002]
[1762234985991,0.30223596,105330.0,105310.0,0.0002]
[1762234985992,0.00048597,105330.0,105310.0,0.0012]
[1762234986238,0.014895,105350.0,105310.0,0.0002]
[1762234986586,0.08517485,105330.0,105310.0,0.00068597]
[1762234986789,0.08617485,105330.0,105310.0,0.00068597]
[1762234986990,0.001,105330.0,105310.0,0.00068597]
[1762234987406,0.34,105320.0,105310.0,0.00068597]
[1762234988436,0.43145337,105320.0,105310.0,0.00068597]
[1762234988609,0.51816998,105320.0,105310.0,0.00068597]
[1762234988873,0.42641998,105320.0,105310.0,0.00068597]
[1762234989274,0.44232544,105320.0,105310.0,0.00068597]
[1762234989488,0.53407544,105320.0,105310.0,0.00068597]
[1762234990848,0.52407545,105320.0,105310.0,0.00068597]
[1762234991048,0.53407544,105320.0,105310.0,0.00068597]
[1762234993253,0.7410658,105320.0,105310.0,0.00068597]
[1762234993457,2.75612495,105320.0,105310.0,0.00068597]
[1762234993667,2.55116835,105320.0,105310.0,0.00068597]
[1762234993883,2.56606872,105320.0,105310.0,0.00068597]
[1762234994084,2.75596617,105320.0,105310.0,0.00068597]
[1762234994292,2.56606872,105320.0,105310.0,0.00068597]
[1762234994490,2.55016835,105320.0,105310.0,0.00068597]
[1762234994965,0.55316835,105320.0,105310.0,0.00068597]
[1762234995386,0.45141836,105320.0,105310.0,0.00068597]
[1762234995607,0.44432544,105320.0,105310.0,0.00068597]
[1762234995822,0.53168544,105320.0,105310.0,0.00068597]
[1762234996239,0.53168544,105320.0,105310.0,0.00257593]
[1762234997129,0.52168545,105320.0,105310.0,0.00257593]
[1762234997337,0.53168544,105320.0,105310.0,0.00257593]
[1762234997956,0.53658496,105320.0,105310.0,0.00257593]
[1762234998589,0.54658495,105320.0,105310.0,0.00257593]
[1762235000347,0.54873103,105320.0,105310.0,0.00257593]
[1762235000786,0.57399959,105320.0,105310.0,0.00257593]
[1762235001394,0.54873103,105320.0,105310.0,0.00257593]
[1762235001673,0.53873104,105320.0,105310.0,0.00257593]
[1762235001893,0.5216795,105320.0,105310.0,0.00257593]
[1762235002116,0.53167949,105320.0,105310.0,0.00257593]
[1762235002971,0.54674969,105320.0,105310.0,0.00257593]
[1762235003401,0.12211999,105310.0,105300.0,0.01884449]
[1762235003606,0.21406567,105310.0,105300.0,0.01884449]
[1762235004487,0.20406568,105310.0,105300.0,0.01884449]
[1762235004698,0.00048568,105310.0,105300.0,0.01884449]
[1762235005107,0.00248568,105310.0,105300.0,0.01884449]
[1762235007590,0.06480568,105310.0,105300.0,0.01884449]